bitfinex/quotes_SOLUSD_20260208
["timestamp","ask_amount","ask_price","bid_price","bid_amount"]
[1770541513440,0.46177827,88.579,88.543,11.29386644]
[1770541513823,0.46177827,88.579,88.5,70.15729965]
[1770541513824,0.48353677,88.598,88.56,13.66053007]
[1770541516240,0.48353677,88.596,88.561,11.29165208]
[1770541517040,0.48353677,88.605,88.562,0.36092971]
[1770541517235,56.40198947,88.65,88.561,11.29165208]
[1770541517236,0.48353677,88.619,88.581,0.36092971]
[1770541517439,0.48353677,88.619,88.561,11.29165208]
[1770541517440,0.48353677,88.619,88.59,13.66053007]
[1770541517634,0.48353677,88.638,88.6,13.66053007]
[1770541517833,0.48353677,88.638,88.592,0.36092971]
[1770541518142,0.48353677,88.629,88.592,0.36092971]
[1770541518443,0.48353677,88.619,88.58,11.28913227]
[1770541518628,0.48353677,88.609,88.577,11.28957736]
[1770541518950,0.48353677,88.609,88.58,13.66053007]
[1770541519841,0.48353677,88.609,88.585,11.28858289]
[1770541520233,0.48353677,88.609,88.58,11.28919326]
[1770541520444,28.20778986,88.628,88.574,11.28999325]
[1770541520445,0.48353677,88.607,88.574,11.28999325]
[1770541521137,0.48353677,88.607,88.546,5.13032502]
[1770541521138,0.48353677,88.599,88.561,11.29154847]
[1770541521441,0.48353677,88.599,88.565,11.2910932]
[1770541522143,11.28693649,88.598,88.565,11.2910932]
[1770541522343,0.48353677,88.597,88.565,11.2910932]
[1770541523027,0.48353677,88.597,88.554,11.65339786]
[1770541523335,11.28693649,88.598,88.554,11.65339786]
[1770541523336,0.48353677,88.589,88.554,11.65339786]
[1770541523540,0.48353677,88.608,88.58,13.66053007]
[1770541523724,0.48353677,88.619,88.581,0.36092969]
[1770541524145,0.48353677,88.617,88.582,11.28897518]
[1770541524328,0.48353677,88.617,88.59,13.66053007]
[1770541524531,11.76601843,88.633,88.601,0.36092969]
[1770541524737,0.48353677,88.633,88.61,13.66053007]
[1770541525451,0.2,88.64,88.62,13.66053007]
[1770541525821,0.2,88.64,88.63,13.66053007]
[1770541526547,0.48353677,88.672,88.632,0.36092969]
[1770541526727,0.48353677,88.672,88.64,13.66053007]
[1770541527439,0.48353677,88.672,88.632,0.36092969]
[1770541527440,0.48353677,88.672,88.65,13.66053007]
[1770541529242,0.48353677,88.672,88.647,11.2806112]
[1770541529648,0.48353677,88.669,88.63,13.66053007]
[1770541529846,0.48353677,88.669,88.636,11.28204503]
[1770541530060,0.48353677,88.669,88.631,11.28270606]
[1770541530256,0.48353677,88.637,88.57,11.29050468]
[1770541530547,0.48353677,88.629,88.591,0.36092967]
[1770541530948,0.48353677,88.619,88.582,0.36092967]
[1770541531322,0.48353677,88.63,88.601,0.36092967]
[1770541532155,0.48353677,88.63,88.6,13.66053007]
[1770541532452,0.48353677,88.619,88.585,0.36092967]
[1770541532837,0.48353677,88.628,88.6,13.66053007]
[1770541533258,0.48353677,88.628,88.595,0.36092967]
[1770541534158,0.48353677,88.64,88.595,0.36092967]
[1770541534349,0.48353677,88.64,88.571,51.6]
[1770541534350,0.48353677,88.648,88.62,13.66053007]
[1770541534745,0.48353677,88.648,88.613,0.36092966]
[1770541535354,0.48353677,88.648,88.62,13.66053007]
[1770541535566,0.48353677,88.648,88.62,14.02145973]
[1770541536162,0.46658342,88.656,88.621,0.36092966]
[1770541536348,0.46658342,88.656,88.63,24.94334306]
[1770541536750,0.46658342,88.656,88.63,11.28281299]
[1770541537457,0.46658342,88.639,88.587,0.36092965]
[1770541537664,0.46658342,88.639,88.6,13.66053007]
[1770541537861,0.46658342,88.629,88.598,11.28684478]
[1770541538349,0.46658342,88.629,88.591,11.28782833]
[1770541538552,0.46658342,88.627,88.591,11.28782833]
[1770541540144,0.46658342,88.627,88.592,0.36092965]
[1770541540964,0.46658342,88.627,88.6,13.66053007]
[1770541541169,0.46658342,88.638,88.601,0.36092964]
[1770541542168,0.46658342,88.636,88.602,11.28642694]
[1770541542560,14.12711349,88.63,88.602,11.28642694]
[1770541543564,0.46658342,88.629,88.602,11.28642694]
[1770541543968,0.46658342,88.649,88.611,0.36092964]
[1770541544456,0.46658342,88.649,88.595,39.50561543]
[1770541544457,0.46658342,88.679,88.641,0.36092964]
[1770541544655,0.46658342,88.669,88.632,0.36092963]
[1770541545972,0.46658342,88.667,88.632,11.64346473]
[1770541546166,0.46658342,88.667,88.624,11.28352298]
[1770541546671,0.46658342,88.649,88.614,11.28481151]
[1770541547663,0.46658342,88.649,88.61,13.66053007]
[1770541547866,39.47309062,88.668,88.594,11.28733004]
[1770541547867,0.46658342,88.629,88.594,11.28733004]
[1770541548053,13.66053007,88.63,88.594,11.28733004]
[1770541548054,0.46658342,88.627,88.594,11.28733004]
[1770541549972,0.46658342,88.617,88.584,11.28864286]
[1770541550656,0.46658342,88.609,88.561,0.36092962]
[1770541550854,0.46658342,88.599,88.569,11.29055853]
[1770541551267,0.46658342,88.599,88.562,11.29147685]
[1770541551470,0.46658342,88.589,88.55,13.66053007]
[1770541551656,0.46658342,88.589,88.56,13.66053007]
[1770541552375,0.46658342,88.589,88.56,24.9522623]
[1770541553355,0.46658342,88.587,88.56,13.66053007]
[1770541553560,0.46658342,88.587,88.551,11.2928439]
[1770541553868,0.46658342,88.587,88.555,11.29235063]
[1770541555678,0.46658342,88.587,88.56,13.66053007]
[1770541556267,0.46658342,88.587,88.55,13.66053007]
[1770541556576,13.66053007,88.57,88.53,13.66053007]
[1770541556774,13.66053007,88.57,88.486,51.6]
[1770541556775,0.50000008,88.611,88.56,27.32106014]
[1770541556963,0.50000008,88.611,88.59,13.66053007]
[1770541557280,0.50000008,88.611,88.58,13.66053007]
[1770541557674,0.50000008,88.611,88.581,11.28910262]
[1770541559665,0.50000008,88.611,88.59,13.66053007]
[1770541560071,0.50000008,88.619,88.6,13.66053007]
[1770541560973,0.50000008,88.637,88.61,13.66053007]
[1770541561779,0.50000008,88.637,88.611,11.2852806]
[1770541562003,0.50000008,88.637,88.62,13.66053007]
[1770541562368,0.50000008,88.649,88.62,13.66053007]
[1770541562777,0.50000008,88.649,88.63,13.66053007]
[1770541563084,0.50000008,88.669,88.63,13.66053007]
[1770541563395,0.2,88.74,88.66,13.66053007]
[1770541563396,0.70000008,88.69,88.66,13.66053007]
[1770541563887,0.70000008,88.69,88.661,11.27891632]
[1770541564795,0.50000008,88.682,88.661,11.27891632]
[1770541565083,0.50000008,88.679,88.651,11.28009455]
[1770541565315,0.50000008,88.679,88.617,5.13032502]
[1770541565316,0.50000008,88.679,88.65,13.66053007]
[1770541565466,0.50000008,88.679,88.66,13.62465343]
[1770541566167,0.2,88.69,88.67,13.62465343]
[1770541566669,0.50000008,88.689,88.67,13.62465343]
[1770541567881,0.50000008,88.689,88.671,11.27764432]
[1770541568073,7.29092303,88.698,88.671,11.27764432]
[1770541570083,0.49283531,88.697,88.671,11.27764432]
[1770541570496,0.49283531,88.697,88.671,39.47175513]
[1770541572095,0.49283531,88.697,88.671,11.27764432]
[1770541572267,0.49283531,88.689,88.643,0.48035203]
[1770541572466,0.49283531,88.689,88.65,13.62465343]
[1770541573388,0.49283531,88.689,88.66,13.62465343]
[1770541573591,0.49283531,88.689,88.67,13.62465343]
[1770541573771,0.49283531,88.689,88.66,13.62465343]
[1770541574085,0.49283531,88.689,88.661,0.46463431]
[1770541574270,0.48027721,88.697,88.67,13.62465343]
[1770541575093,7.29092303,88.698,88.68,13.62465343]
[1770541575595,0.48027721,88.689,88.65,13.62465343]
[1770541575764,0.48027721,88.689,88.657,11.27934683]
[1770541575965,0.48027721,88.689,88.665,11.27828434]
[1770541576183,0.48027721,88.689,88.661,0.46463431]
[1770541576595,0.48027721,88.689,88.659,11.27904569]
[1770541576776,0.48027721,88.689,88.66,13.62465343]
[1770541578190,0.48027721,88.697,88.662,0.46463431]
[1770541578377,7.29092303,88.698,88.68,13.62465343]
[1770541578978,7.29092303,88.698,88.681,0.46463431]
[1770541579894,0.48027721,88.696,88.654,11.27972775]
[1770541580087,0.48027721,88.689,88.654,11.27972775]
[1770541581202,11.27433847,88.697,88.648,11.28044771]
[1770541581203,0.48027721,88.679,88.648,11.28044771]
[1770541581800,0.48027721,88.679,88.641,11.28146117]
[1770541581982,0.48027721,88.677,88.641,11.28146117]
[1770541582600,0.48027721,88.659,88.633,11.28237801]
[1770541582897,0.48027721,88.659,88.628,11.28304459]
[1770541583480,0.48027721,88.659,88.63,13.62465343]
[1770541583699,0.48027721,88.659,88.628,11.28304459]
[1770541583895,0.48027721,88.659,88.623,11.28375252]
[1770541584199,0.48027721,88.659,88.623,11.74838683]
[1770541584899,0.48027721,88.659,88.63,13.62465343]
[1770541586604,0.48027721,88.659,88.631,11.28273403]
[1770541586788,0.48027721,88.685,88.65,13.62465343]
[1770541587505,0.48027721,88.685,88.66,13.62465343]
[1770541588097,0.48027721,88.685,88.65,13.62465343]
[1770541588288,0.48027721,88.685,88.651,11.2801886]
[1770541588498,11.27599115,88.684,88.651,11.2801886]
[1770541588708,0.48027721,88.683,88.651,11.2801886]
[1770541590104,0.48027721,88.683,88.65,13.62465343]
[1770541590314,0.48027721,88.677,88.64,13.62465343]
[1770541590600,0.48027721,88.677,88.641,0.46463431]
[1770541590807,0.48027721,88.677,88.65,13.62465343]
[1770541591005,7.16571637,88.687,88.633,11.28247943]
[1770541591006,0.48027721,88.659,88.633,11.28247943]
[1770541591208,0.48027721,88.649,88.611,0.46463431]
[1770541591382,0.48027721,88.649,88.617,11.28447904]
[1770541591590,0.48027721,88.639,88.6,24.91131222]
[1770541592433,0.48027721,88.637,88.6,24.91131222]
[1770541592906,0.48027721,88.629,88.594,11.28732191]
[1770541593116,0.48027721,88.629,88.598,11.28685089]
[1770541594307,0.48027721,88.627,88.593,11.28752]
[1770541594702,0.48027721,88.619,88.588,11.28819951]
[1770541595106,0.48027721,88.619,88.591,11.75246264]
[1770541595409,0.48027721,88.632,88.6,13.62465343]
[1770541595909,0.48027721,88.632,88.601,0.46146499]
[1770541597414,7.19057548,88.64,88.621,0.46146499]
[1770541598198,7.19057548,88.64,88.63,13.62465343]
[1770541599019,7.19057548,88.64,88.63,25.36892494]
[1770541599694,0.47624264,88.677,88.631,0.46146499]
[1770541599917,0.47624264,88.677,88.646,0.46146499]
[1770541601230,0.47624264,88.675,88.641,11.28146117]
[1770541601523,11.27700843,88.676,88.63,13.62465343]
[1770541601524,13.62465343,88.67,88.63,13.62465343]
[1770541601713,13.62465343,88.67,88.629,11.28295934]
[1770541601714,0.47624264,88.669,88.629,11.28295934]
[1770541602794,0.47624264,88.667,88.622,0.46146499]
[1770541602996,0.47624264,88.675,88.641,0.46146499]
[1770541603217,0.47624264,88.675,88.65,13.62465343]
[1770541604811,0.47624264,88.675,88.651,11.2801886]
[1770541606723,0.47624264,88.675,88.65,13.62465343]
[1770541606724,0.47624264,88.675,88.646,11.28079325]
[1770541606925,13.62465343,88.67,88.633,0.46146499]
[1770541607218,0.47624264,88.669,88.636,11.28204298]
[1770541607398,0.47624264,88.669,88.636,11.74350797]
[1770541608103,0.47624264,88.669,88.63,11.28284053]
[1770541608312,0.47624264,88.659,88.63,11.28284053]
[1770541608603,0.47624264,88.659,88.62,13.62465343]
[1770541608921,0.47624264,88.648,88.611,0.46146499]
[1770541609822,0.47624264,88.648,88.611,11.74674559]
[1770541610405,0.47624264,88.648,88.612,0.46146499]
[1770541612328,0.47624264,88.648,88.613,11.28502589]
[1770541612509,0.47624264,88.648,88.613,11.74649088]
[1770541615004,0.47624264,88.648,88.615,11.74623619]
[1770541615210,0.47624264,88.655,88.621,0.46146499]
[1770541616032,0.47624264,88.663,88.631,0.46146499]
[1770541617633,0.47624264,88.663,88.633,0.46146499]
[1770541617845,0.47624264,88.677,88.641,0.46146499]
[1770541618715,0.47624264,88.669,88.632,11.28260673]
[1770541619808,0.47624264,88.659,88.621,0.46146499]
[1770541620127,0.47624264,88.649,88.621,0.46146499]
[1770541620320,0.47624264,88.649,88.623,11.28369523]
[1770541622324,11.28057034,88.648,88.62,13.62465343]
[1770541622528,0.47624264,88.639,88.598,0.46146499]
[1770541622736,0.47624264,88.629,88.594,11.28734122]
[1770541622926,0.47624264,88.629,88.601,0.46146499]
[1770541623238,0.47624264,88.629,88.602,11.28632771]
[1770541623418,0.47624264,88.629,88.59,14.08611842]
[1770541623625,0.47624264,88.629,88.596,11.28708793]
[1770541624017,0.47624264,88.629,88.592,0.46146499]
[1770541625345,0.47624264,88.619,88.591,11.28782833]
[1770541625828,0.47335843,88.639,88.601,0.46108953]
[1770541626012,0.47335843,88.637,88.601,0.46108953]
[1770541626207,0.47335843,88.635,88.602,11.28642694]
[1770541626613,0.47335843,88.629,88.602,11.28642694]
[1770541627418,0.47335843,88.629,88.595,0.46108953]
[1770541629040,0.47335843,88.637,88.601,0.46108953]
[1770541629236,0.47335843,88.637,88.611,0.46108953]
[1770541629420,0.47335843,88.637,88.612,11.74624278]
[1770541630127,0.47335843,88.637,88.612,11.28515325]
[1770541630440,0.47335843,88.637,88.613,0.46108953]
[1770541631834,0.47335843,88.637,88.612,11.28515325]
[1770541632033,0.47335843,88.637,88.607,11.74676728]
[1770541632236,0.47335843,88.637,88.608,0.46108953]
[1770541632532,0.47335843,88.637,88.611,11.74630329]
[1770541635241,0.47335843,88.637,88.612,0.46784914]
[1770541635838,0.47335843,88.637,88.611,11.28521376]
[1770541635839,0.47224296,88.669,88.631,0.46784914]
[1770541636043,0.47224296,88.659,88.621,11.75174996]
[1770541636227,0.47224296,88.659,88.626,11.28331085]
[1770541636429,0.47224296,88.659,88.627,0.46784914]
[1770541637438,0.47224296,88.659,88.629,0.46784914]
[1770541638456,0.47224296,88.659,88.63,11.28286133]
[1770541639149,0.47224296,88.659,88.63,11.75071047]
[1770541639448,0.47224296,88.659,88.631,0.46784914]
[1770541642252,0.47224296,88.666,88.633,0.46784914]
[1770541643456,11.27840748,88.665,88.633,0.46784914]
[1770541643747,0.47224296,88.671,88.641,0.46784914]
[1770541645052,0.47224296,88.671,88.643,0.46784914]
[1770541645547,0.47224296,88.671,88.65,5.09263064]
[1770541646956,0.47224296,88.678,88.651,0.46784914]
[1770541647153,7.18626572,88.679,88.663,0.46784914]
[1770541647356,7.18626572,88.679,88.662,11.2787891]
[1770541647357,0.47224296,88.706,88.671,0.46784914]
[1770541647526,0.47224296,88.706,88.662,11.2787891]
[1770541647527,0.47224296,88.715,88.69,5.09263064]
[1770541647945,0.47224296,88.715,88.691,0.46784914]
[1770541648442,0.1,88.72,88.691,0.46784914]
[1770541648651,0.47224296,88.718,88.691,0.46784914]
[1770541648948,0.47224296,88.718,88.683,0.46784914]
[1770541649355,11.27179683,88.717,88.684,11.27599115]
[1770541649645,0.47224296,88.716,88.684,11.27599115]
[1770541649854,0.47224296,88.716,88.691,0.46784914]
[1770541650365,0.47224296,88.716,88.69,5.09263064]
[1770541653173,0.1,88.72,88.692,0.46784914]
[1770541653454,0.1,88.72,88.701,0.46784914]
[1770541654848,0.1,88.72,88.702,11.7415521]
[1770541655042,0.1,88.72,88.703,0.46784914]
[1770541656439,0.1,88.72,88.704,11.27344877]
[1770541656759,6.75946605,88.729,88.71,5.09263064]
[1770541656941,6.75946605,88.729,88.72,5.09263064]
[1770541657536,0.2,88.74,88.72,5.09263064]
[1770541657537,1e-08,88.74,88.72,10.18526128]
[1770541657848,0.1,88.75,88.73,5.09263064]
[1770541658848,0.1,88.75,88.731,11.27001837]
[1770541659059,0.1,88.75,88.74,5.09263064]
[1770541659274,0.1,88.76,88.74,5.09263064]
[1770541659471,0.50000002,88.788,88.75,5.09263064]
[1770541659654,0.50000002,88.796,88.77,5.09263064]
[1770541659969,5.09263064,88.81,88.79,5.09263064]
[1770541659970,0.50000002,88.81,88.79,5.09263064]
[1770541662659,0.50000002,88.799,88.76,5.09263064]
[1770541662849,0.50000002,88.799,88.77,5.09263064]
[1770541663365,0.50000002,88.799,88.761,11.26620925]
[1770541663567,0.50000002,88.799,88.77,13.5914305]
[1770541663872,5.36086188,88.827,88.761,11.26620925]
[1770541663873,0.50000002,88.816,88.79,13.5914305]
[1770541665277,0.50000002,88.816,88.782,11.26352083]
[1770541666166,0.50000002,88.816,88.757,5.13032502]
[1770541666167,0.50000002,88.816,88.791,11.26240272]
[1770541666758,0.50000002,88.816,88.785,11.26314777]
[1770541667164,0.50000002,88.814,88.785,11.26314777]
[1770541667364,0.50000002,88.814,88.79,13.5914305]
[1770541668270,0.44625264,88.847,88.77,13.5914305]
[1770541668271,0.50000002,88.809,88.77,13.5914305]
[1770541669272,0.50000002,88.807,88.774,11.26451071]
[1770541669575,0.50000002,88.789,88.75,13.5914305]
[1770541669869,0.50000002,88.789,88.768,11.26521736]
[1770541670072,0.50000002,88.789,88.76,13.5914305]
[1770541670073,0.50000002,88.798,88.771,11.26494012]
[1770541670253,0.50000002,88.806,88.78,13.5914305]
[1770541670966,0.50000002,88.806,88.771,11.26494012]
[1770541671368,0.50000002,88.804,88.77,13.5914305]
[1770541671667,0.50000002,88.799,88.766,11.26555279]
[1770541672480,0.50000002,88.799,88.77,11.26496699]
[1770541672664,0.50000002,88.799,88.77,24.85639749]
[1770541676982,0.50000002,88.797,88.765,11.26568343]
[1770541678273,0.50000002,88.809,88.78,13.5914305]
[1770541678778,0.50000002,88.809,88.79,13.5914305]
[1770541680497,11.25885227,88.819,88.79,24.85394919]
[1770541680663,0.50000002,88.827,88.8,13.5914305]
[1770541681163,7.1287235,88.845,88.79,39.4188426]
[1770541681164,7.1287235,88.845,88.82,13.5914305]
[1770541681861,0.50000002,88.865,88.83,13.5914305]
[1770541682263,0.50000002,88.865,88.807,5.13032502]
[1770541682478,0.50000002,88.865,88.83,13.5914305]
[1770541682682,0.50000002,88.865,88.84,13.5914305]
[1770541682888,0.50000002,88.879,88.85,13.5914305]
[1770541683280,0.50000002,88.879,88.84,13.5914305]
[1770541683478,10.60000002,88.9,88.86,13.5914305]
[1770541683787,0.50000002,88.899,88.88,13.5914305]
[1770541683973,0.50000002,88.899,88.86,13.5914305]
[1770541684492,0.50000002,88.899,88.87,13.5914305]
[1770541684789,10.1,88.9,88.88,13.5914305]
[1770541685170,7.08060902,88.92,88.89,13.5914305]
[1770541685483,6.34465403,88.978,88.913,5.13032502]
[1770541685790,0.50000002,88.978,88.954,5.84360579]
[1770541685993,7.07929083,89.007,88.89,13.5914305]
[1770541685994,0.50000002,88.929,88.89,13.5914305]
[1770541686569,0.50000002,88.959,88.92,13.5914305]
[1770541686788,2e-08,88.959,88.93,13.5914305]
[1770541687084,13.5914305,88.98,88.931,0.47322112]
[1770541687393,13.5914305,88.99,88.95,13.5914305]
[1770541687580,13.5914305,88.99,88.941,0.47322112]
[1770541687788,13.5914305,88.98,88.941,0.47322112]
[1770541688287,13.5914305,88.99,88.941,0.47322112]
[1770541688474,11.23658632,88.995,88.95,13.5914305]
[1770541688676,11.23658632,88.995,88.951,11.24214455]
[1770541688982,0.46178704,88.989,88.951,11.24214455]
[1770541689184,1.0,89.0,88.961,0.47322112]
[1770541689377,1.46178704,89.0,88.97,13.52996089]
[1770541689581,1.46178704,89.0,88.97,14.00318201]
[1770541689776,1.0,89.0,88.971,0.47322112]
[1770541690895,0.2719467,89.017,88.938,5.13032502]
[1770541690896,0.46178704,89.063,88.993,5.13032502]
[1770541691190,0.46178704,89.059,89.02,13.52996089]
[1770541691393,0.46178704,89.058,89.02,14.00318201]
[1770541691573,0.46178704,89.049,89.009,0.47322112]
[1770541691770,0.46178704,89.049,89.01,13.52996089]
[1770541691975,0.46178704,89.049,89.011,0.47322112]
[1770541692191,0.46178704,89.059,89.021,0.47322112]
[1770541692778,0.46178704,89.059,89.022,11.23317831]
[1770541692981,0.46178704,89.049,89.008,0.47322112]
[1770541693291,0.46178704,89.049,89.022,11.23317831]
[1770541693596,0.46178704,89.049,89.011,0.47322112]
[1770541693893,0.46178704,89.049,89.01,13.52996089]
[1770541694090,0.46178704,89.049,89.013,11.2342256]
[1770541694288,0.46178704,89.049,89.022,11.23317831]
[1770541694488,7.08528512,89.067,89.031,0.49999483]
[1770541694789,7.08528512,89.067,89.032,11.23191661]
[1770541694983,13.52996089,89.06,89.033,0.46663877]
[1770541695384,0.49902756,89.059,89.021,0.46663877]
[1770541695587,0.49902756,89.049,89.006,0.46663877]
[1770541695898,13.52996089,89.04,89.006,0.46663877]
[1770541696396,39.29670131,89.066,88.991,11.23704261]
[1770541696397,0.49902756,89.029,88.991,11.23704261]
[1770541696695,39.29670131,89.066,89.001,0.46663877]
[1770541696696,0.49902756,89.039,89.001,0.46663877]
[1770541696906,11.23115972,89.038,89.001,0.46663877]
[1770541697205,11.73018728,89.038,89.001,0.46663877]
[1770541697408,0.49902756,89.019,88.973,11.239278]
[1770541697577,0.49902756,88.999,88.96,13.52996089]
[1770541697782,0.49902756,88.999,88.96,13.99659966]
[1770541698193,0.49902756,88.999,88.961,0.46663877]
[1770541698487,39.30905904,89.038,88.931,0.46663877]
[1770541698488,0.49902756,88.979,88.931,0.46663877]
[1770541698688,0.49902756,88.969,88.937,0.46663877]
[1770541699282,13.52996089,88.96,88.924,0.46663877]
[1770541699482,0.49902756,88.968,88.928,11.2449486]
[1770541699698,0.49902756,88.968,88.933,11.24433183]
[1770541699912,0.49902756,88.968,88.933,11.7109706]
[1770541700087,0.49902756,88.968,88.94,13.52996089]
[1770541700286,11.73902396,88.968,88.933,0.46663877]
[1770541700707,13.52996089,88.96,88.921,0.46663877]
[1770541701209,11.24113355,88.959,88.921,0.46663877]
[1770541701705,11.24113355,88.959,88.931,0.46663877]
[1770541701901,11.23873316,88.978,88.941,0.46663877]
[1770541702204,0.49902756,88.977,88.941,0.46663877]
[1770541703199,0.49902756,88.984,88.951,0.46663877]
[1770541703396,0.49902756,88.979,88.941,0.46663877]
[1770541704113,11.23784907,88.985,88.951,0.46663877]
[1770541704591,0.49902756,88.979,88.942,0.46663877]
[1770541704792,0.49902756,88.969,88.93,13.52996089]
[1770541705502,13.52996089,88.96,88.923,0.46663877]
[1770541705701,0.49902756,88.969,88.93,13.52996089]
[1770541705902,13.52996089,88.94,88.9,13.52996089]
[1770541706108,0.49902756,88.939,88.901,0.46663877]
[1770541706297,13.52996089,88.94,88.9,13.52996089]
[1770541706298,0.49902756,88.937,88.9,13.52996089]
[1770541706499,0.49902756,88.929,88.891,0.46663877]
[1770541707527,0.49902756,88.929,88.9,13.52996089]
[1770541707893,0.49902756,88.929,88.891,0.46663877]
[1770541708101,0.49902756,88.929,88.9,13.52996089]
[1770541708908,0.49902756,88.928,88.89,13.52996089]
[1770541709108,39.35725488,88.929,88.882,0.46663877]
[1770541709109,0.49902756,88.919,88.882,0.46663877]
[1770541710014,0.49902756,88.919,88.89,13.52996089]
[1770541710207,0.49902756,88.919,88.882,0.46663877]
[1770541710798,11.24631683,88.918,88.882,0.46663877]
[1770541710994,0.49902756,88.917,88.882,11.71740349]
[1770541711206,0.49902756,88.917,88.89,13.52996089]
[1770541711411,0.49902756,88.917,88.882,11.71740349]
[1770541711711,0.49902756,88.909,88.863,0.46663877]
[1770541711911,0.49902756,88.909,88.867,11.25275341]
[1770541712117,0.49902756,88.909,88.87,13.52996089]
[1770541712497,0.49902756,88.909,88.861,11.25349526]
[1770541712699,0.49902756,88.909,88.87,13.52996089]
[1770541712928,39.3621089,88.918,88.87,13.52996089]
[1770541712929,0.49902756,88.907,88.874,11.25181267]
[1770541715119,0.49902756,88.907,88.875,0.46663877]
[1770541715721,11.24783479,88.906,88.875,0.46663877]
[1770541715923,0.4758443,88.899,88.864,0.46639818]
[1770541716132,0.4758443,88.899,88.855,0.46639818]
[1770541716310,0.4758443,88.899,88.86,13.52996089]
[1770541717030,0.4758443,88.897,88.855,0.46639818]
[1770541717200,0.4758443,88.889,88.855,0.46639818]
[1770541717401,0.4758443,88.889,88.86,13.52996089]
[1770541718721,0.4758443,88.889,88.861,11.25353079]
[1770541720115,0.4758443,88.889,88.86,13.52996089]
[1770541720316,0.4758443,88.887,88.853,11.25449559]
[1770541720824,0.4758443,88.887,88.821,5.13032502]
[1770541720825,0.4758443,88.887,88.861,11.25353079]
[1770541721401,0.4758443,88.887,88.86,13.52996089]
[1770541721801,0.4758443,88.887,88.854,11.72077209]
[1770541722005,0.4758443,88.912,88.881,0.46639818]
[1770541722206,0.4758443,88.919,88.872,0.46639818]
[1770541722422,0.4758443,88.919,88.875,11.25165259]
[1770541722629,0.4758443,88.919,88.88,13.52996089]
[1770541722953,0.4758443,88.919,88.872,0.46639818]
[1770541722954,0.4758443,88.909,88.87,13.52996089]
[1770541723111,0.4758443,88.909,88.864,11.71947189]
[1770541723315,0.4758443,88.909,88.865,0.46639818]
[1770541723537,0.4758443,88.889,88.834,0.46639818]
[1770541723834,0.4758443,88.869,88.835,11.72322262]
[1770541724134,0.4758443,88.869,88.836,0.46639818]
[1770541724427,0.4758443,88.867,88.83,13.52996089]
[1770541724628,0.4758443,88.867,88.831,0.46639818]
[1770541725012,0.4758443,88.867,88.822,0.46639818]
[1770541725208,0.4758443,88.867,88.831,11.25733133]
[1770541725532,0.4758443,88.867,88.83,13.99635907]
[1770541726029,0.4758443,88.867,88.83,25.25375912]
[1770541726323,0.4758443,88.859,88.83,13.52996089]
[1770541726521,0.4758443,88.859,88.821,0.46639818]
[1770541726729,0.4758443,88.859,88.83,13.52996089]
[1770541728232,0.4758443,88.859,88.83,24.78730089]
[1770541729944,13.52996089,88.84,88.82,0.2]
[1770541730324,39.38868756,88.858,88.82,0.2]
[1770541730532,13.52996089,88.85,88.82,0.2]
[1770541730736,7.08584941,88.857,88.821,0.49999999]
[1770541731336,7.08584941,88.857,88.824,0.49999999]
[1770541731535,7.08584941,88.857,88.831,0.49999999]
[1770541731723,13.52996089,88.84,88.82,0.2]
[1770541732343,13.52996089,88.83,88.808,0.49999999]
[1770541732547,13.52996089,88.84,88.808,0.49999999]
[1770541733242,46.47505229,88.857,88.808,0.49999999]
[1770541733243,13.52996089,88.83,88.808,0.49999999]
[1770541733733,13.52996089,88.83,88.79,13.72996089]
[1770541733734,11.25758479,88.829,88.8,0.49999999]
[1770541733940,13.52996089,88.82,88.792,0.49999999]
[1770541734243,5.62846796,88.819,88.801,0.49999999]
[1770541734441,5.62846796,88.819,88.811,0.49999999]
[1770541734756,5.12846795,88.819,88.811,0.49999999]
[1770541734922,0.4758443,88.846,88.811,0.49999999]
[1770541735539,11.25555743,88.845,88.811,0.49999999]
[1770541735748,11.25555743,88.845,88.813,0.46639818]
[1770541736941,11.25441735,88.854,88.821,0.46639818]
[1770541737148,13.52996089,88.85,88.821,0.46639818]
[1770541737326,0.4758443,88.849,88.821,0.46639818]
[1770541737644,0.4758443,88.849,88.813,0.46639818]
[1770541737847,11.25517738,88.848,88.821,0.46639818]
[1770541738144,11.25421094,88.856,88.821,0.46639818]
[1770541738349,7.08754599,88.859,88.831,0.46639818]
[1770541738535,11.25391073,88.858,88.831,0.46639818]
[1770541740143,0.4758443,88.839,88.807,11.2602962]
[1770541740344,13.52996089,88.82,88.785,11.26315598]
[1770541740552,13.52996089,88.82,88.791,0.46639818]
[1770541741425,13.52996089,88.81,88.79,0.2]
[1770541741629,0.4758443,88.799,88.767,0.46639818]
[1770541742042,13.52996089,88.79,88.767,0.46639818]
[1770541742243,13.52996089,88.78,88.743,0.46639818]
[1770541742437,13.52996089,88.79,88.751,0.46639818]
[1770541742641,0.4758443,88.789,88.751,0.46639818]
[1770541742833,13.52996089,88.78,88.751,0.46639818]
[1770541743238,13.52996089,88.77,88.731,0.46639818]
[1770541743434,13.52996089,88.77,88.732,0.46639818]
[1770541743640,13.52996089,88.77,88.736,0.46639818]
[1770541743947,0.4758443,88.778,88.741,0.46639818]
[1770541744152,13.52996089,88.77,88.741,0.46639818]